Cogmind - Beta 13 @@@ ROGUE MODE // 2024.04.11 @ 01:33:19 Player: Demo Result: Destroyed by L-31 Rogue with Katana Performance ------------- Evolutions (1) 500 Regions Visited (3) 600 Robots Destroyed (41) 205 Value Destroyed (1041) 1041 Prototype IDs (0) 0 Alien Tech Used (0) 0 Bonus (176) 176 TOTAL SCORE: 2522 Bonus ------- High Alert Combat Kills 143 Follower Combat Kills 33 Cogmind --------- Core Integrity 0/400 Matter 239/300 Energy 83/100 System Corruption 4% Temperature Cool (0) Movement Core (150) Ox2 Location -9/Storage Parts ------- > --- POWER (1) -------- (None) > --- PROPULSION (2) --- (None) > --- UTILITY (4) ------ Small Storage Unit Salvage Targeting Computer > --- WEAPON (2) ------- Rocket Launcher > --- INVENTORY (8) ---- Armored Wheel Armored Wheel Compact Matter Pod (150) Sensor Array Medium Armor Plating Drone Bay (2/2) EMP Blaster Peak State ------------ > --- POWER ------------ (None) > --- PROPULSION ------- Wheel Armored Wheel > --- UTILITY ---------- Small Storage Unit Seismic Detector Salvage Targeting Computer Drone Bay > --- WEAPON ----------- Light Assault Rifle EMP Blaster > --- INVENTORY -------- Armored Wheel Armored Wheel Compact Matter Pod Sensor Array Medium Armor Plating Rocket Launcher [Rating: 16] Favorites ----------- Power Light Ion Engine Engine Light Ion Engine Propulsion Wheel Treads Light Treads Wheel Wheel Utility Small Storage Unit Device Seismic Detector Storage Small Storage Unit Processor Salvage Targeting Computer Protection Light Armor Plating Weapon Light Assault Rifle Energy Gun Medium Laser Ballistic Gun Light Assault Rifle Launcher Mini Grenade Launcher Build | -11 -10 -9 -9 ------- Run | Yrd Mat Mat Sto Slots Evolved 2 | . . 2 . Power . | . . . . Propulsion . | . . . . Utility 2 | . . 2 . Weapon . | . . . . Parts Attached 35 | 7 1 19 8 Power 2 | 1 . 1 . Engine 2 | 1 . 1 . Core . | . . . . Reactor . | . . . . Propulsion 6 | 2 . 3 1 Treads 1 | 1 . . . Leg . | . . . . Wheel 5 | 1 . 3 1 Hover . | . . . . Flight . | . . . . Utility 13 | 2 . 9 2 Device 7 | 1 . 4 2 Storage 2 | 1 . 1 . Processor 2 | . . 2 . Hackware . | . . . . Protection 2 | . . 2 . Artifact . | . . . . Weapon 14 | 2 1 6 5 Energy Gun 5 | 1 . 3 1 Energy Cannon . | . . . . Ballistic Gun 4 | 1 . 2 1 Ballistic Cannon . | . . . . Launcher 5 | . 1 1 3 Special Weapon . | . . . . Impact Weapon . | . . . . Slashing Weapon . | . . . . Piercing Weapon . | . . . . Special Melee Weapon . | . . . . Unidentified Prototypes . | . . . . Parts Lost 15 | . . 8 7 Power 1 | . . 1 . Propulsion 4 | . . 2 2 Utility 4 | . . 2 2 Weapon 6 | . . 3 3 Highest Loss Streak 8 | . . 8 7 To Critical Strikes . | . . . . Average Slot Usage (%) 82 | . 85 82 79 Engine 1 | . . 2 . Treads 5 | . 14 4 . Wheel 16 | . 14 16 21 Device 16 | . 14 16 18 Storage 15 | . 14 17 11 Processor 4 | . . 3 11 Protection 1 | . . 2 . Energy Gun 11 | . 14 10 11 Ballistic Gun 5 | . 10 4 3 Launcher 3 | . 3 3 1 Naked Turns . | . . . . Heaviest Build 17 | 9 9 17 14 Greatest Support 20 | 10 10 20 20 Greatest Overweight (x) 1 | . . 1 1 Average Overweight (x) . | . . . . Largest Inventory Capacity 8 | 8 8 8 8 Average Capacity 7 | 7 8 8 8 Most Carried 8 | 7 8 8 8 Average Carried 6 | 4 7 7 7 Final Capacity 8 | 8 8 8 8 Final Carried 8 | 7 8 8 7 Class Distribution -------------------- 100% | Mutant Dominant Class ---------------- Mutant | -10/Materials Mutant | -9/Materials Mutant | -9/Storage Resources | -11 -10 -9 -9 ----------- Run | Yrd Mat Mat Sto Matter Collected 802 | 203 1 410 188 Remotely . | . . . . Salvage Created 1003 | 186 10 424 383 Parts 73 | 12 6 28 27 Haulers Intercepted . | . . . . Recyclers Shooed . | . . . . Parts Field Recycled . | . . . . Retrieved Matter . | . . . . Parts Self-Destructed . | . . . . Prevented . | . . . . Kills | -11 -10 -9 -9 ------- Run | Yrd Mat Mat Sto Combat Hostiles Destroyed 31 | . 3 13 15 Guns 5 | . . 4 1 AOE 25 | . 3 9 13 Classes Destroyed 11 | 2 2 4 3 Builder 1 | . . 1 . Tunneler 5 | 5 . . . Recycler 1 | 1 . . . Mechanic 1 | . . . 1 Watcher 2 | . 1 1 . Swarmer 11 | . 3 4 4 Grunt 12 | . . 5 7 Brawler 1 | . . . 1 Duelist 1 | . . 1 . Protector 1 | . . . 1 Sentry 5 | . . 3 2 Best Kill Streak 14 | 5 3 8 14 Combat Bots Only 13 | . 3 7 13 Max Kills in Single Turn 6 | 1 2 5 6 Gunslinging . | . . . . Exploded 6 | . 2 5 6 Melee . | . . . . Uniques/NPCs Destroyed . | . . . . Combat | -11 -10 -9 -9 -------- Run | Yrd Mat Mat Sto Hostile Shots Fired 178 | . 1 75 102 Missed 46 | . . 18 28 Damage Taken 1828 | . 66 792 970 Core 433 | . 32 121 280 Absorbed by Shields . | . . . . Core Remaining (%) 93 | 100 87 . . Volleys Fired 70 | 14 7 29 20 Largest 2 | 2 1 2 2 Hottest 113 | 70 30 113 96 Shots Fired 101 | 28 7 46 20 Gun 81 | 28 . 40 13 Cannon . | . . . . Launcher 20 | . 7 6 7 Special . | . . . . Kinetic 29 | 14 . 15 . Thermal 50 | 14 . 23 13 Explosive 18 | . 7 6 5 Electromagnetic 4 | . . 2 2 Robot Hit Streak 11 | 6 1 11 9 Robot Miss Streak 2 | 2 2 2 2 Penetration Max . | . . . . Secondary Targets . | . . . . Shots Hit Robots 63 | 17 1 31 14 Core Hits 66 | 8 6 22 30 Critical Kills . | . . . . Critical Parts Destroyed . | . . . . Critical Strikes 2 | . . 2 . Burn 2 | . . 2 . Melee Attacks . | . . . . Impact . | . . . . Slashing . | . . . . Piercing . | . . . . Sneak Attacks . | . . . . Combat Hostiles . | . . . . Follow-up Attacks . | . . . . Damage Inflicted 2849 | 183 263 861 1542 Guns 722 | 183 . 369 170 Cannons . | . . . . Explosions 2127 | . 263 492 1372 Melee . | . . . . Ramming . | . . . . Kinetic 143 | 70 . 73 . Thermal 606 | 113 . 267 226 Explosive 1939 | . 263 492 1184 Electromagnetic 161 | . . 29 132 Impact . | . . . . Slashing . | . . . . Piercing . | . . . . Highest Corruption 4 | . . . 4 Average Corruption 3 | . . . 3 Corruption Purged . | . . . . Corruption Blocked . | . . . . Effects 6 | . . . 6 Message Errors 1 | . . . 1 Matter Fused 1 | . . . 1 Heat Flow Errors 1 | . . . 1 Data Loss (minor) 1 | . . . 1 Weapon Failures 2 | . . . 2 Overload Shots . | . . . . Overflow Damage 48 | . 32 . 16 Projectiles . | . . . . Explosions 48 | . 32 . 16 Melee . | . . . . Knockbacks . | . . . . Impact . | . . . . Kinetic . | . . . . Secondary . | . . . . Self-Inflicted Damage 151 | . 58 21 72 Shots 7 | . 2 1 4 Rammed . | . . . . Targets Rammed . | . . . . Kicked . | . . . . Crushed . | . . . . Highest Temperature 213 | 40 . 124 213 Average Temperature 35 | 21 . 42 37 Received Heat Transfer 708 | . . 378 330 Siege Activations . | . . . . Robots Corrupted . | . . . . Combat Hostiles . | . . . . Parts Fried . | . . . . Impact Corruptions . | . . . . Robots Melted 1 | . . . 1 Combat Hostiles 1 | . . . 1 Parts Melted 3 | . . 2 1 Heat Transferred 1646 | 333 . 777 536 Parts Sabotaged . | . . . . Parts Stolen . | . . . . Parts Stripped . | . . . . Power Chain Reactions 1 | . . . 1 Alert | -11 -10 -9 -9 ------- Run | Yrd Mat Mat Sto Peak Influence 645 | 30 243 564 645 Initial 159 | . 19 102 159 Average 249 | 14 70 388 241 Maximum Alert Level 2 | . 1 2 2 Low Security (%) 42 | 100 87 4 50 Level 1 39 | . 12 57 47 Level 2 18 | . . 37 2 Level 3 . | . . . . Level 4 . | . . . . Level 5 . | . . . . High Security . | . . . . Max Security . | . . . . Squads Dispatched 4 | . 1 . 3 Investigation . | . . . . Extermination . | . . . . Reinforcement 2 | . 1 . 1 Assault 2 | . . . 2 Garrison . | . . . . Intercept . | . . . . Searches Triggered . | . . . . Construction Impeded . | . . . . Haulers Reinforced . | . . . . Active Scanning Responses . | . . . . Cargo Convoy Interrupts . | . . . . Stealth | -11 -10 -9 -9 --------- Run | Yrd Mat Mat Sto Distress Signals 2 | . . 1 1 Communications Jammed . | . . . . Distress Signals . | . . . . Times Spotted 54 | . 6 18 30 Peak Tracking Total 19 | . 3 6 19 Tactical Retreats 6 | . 2 3 1 Traps | -11 -10 -9 -9 ------- Run | Yrd Mat Mat Sto Traps Triggered 2 | . . . 2 Indirectly . | . . . . Trap Hack Attempts . | . . . . Triggered . | . . . . Disarmed . | . . . . Reprogrammed . | . . . . Reused . | . . . . Traps Extracted . | . . . . Installed . | . . . . Triggered . | . . . . Machines | -11 -10 -9 -9 ---------- Run | Yrd Mat Mat Sto Machines Disabled 6 | . . 3 3 Max in Single Turn 1 | . . 1 1 Machines Repaired . | . . . . Machines Dismantled . | . . . . Machines Sabotaged . | . . . . Overloaded Fab Kills . | . . . . Hacking | -11 -10 -9 -9 --------- Run | Yrd Mat Mat Sto Machines Accessed 7 | . 1 4 2 Terminals 7 | . 1 4 2 Fabricators . | . . . . Repair Stations . | . . . . Recycling Units . | . . . . Scanalyzers . | . . . . Garrison Access . | . . . . Total Hacks 15 | . 3 10 2 Successful 4 | . 1 2 1 Failed 10 | . 2 7 1 Catastrophic 2 | . . 1 1 Database Lockouts 1 | . . 1 . Manual 11 | . 3 8 . Terminals 15 | . 3 10 2 Fabricators . | . . . . Repair Stations . | . . . . Recycling Units . | . . . . Scanalyzers . | . . . . Garrison Access . | . . . . Terminal Hacks 3 | . 1 1 1 Robot Analysis 2 | . 1 1 . Open Door 1 | . . . 1 Fabricator Hacks . | . . . . Repair Station Hacks . | . . . . Recycling Unit Hacks . | . . . . Scanalyzer . | . . . . Garrison Access Hacks . | . . . . Unauthorized Hacks 1 | . . 1 . Terminals 1 | . . 1 . Operators 1 | . . 1 . Fabricators . | . . . . Repair Stations . | . . . . Recycling Units . | . . . . Scanalyzers . | . . . . Garrison Access . | . . . . Data Cores Recovered . | . . . . Used . | . . . . Hacking Detections 7 | . 1 4 2 Full Trace Events . | . . . . Feedback Events . | . . . . Feedback Blocked . | . . . . Robot Schematics Acquired . | . . . . Robots Built . | . . . . Authchips . | . . . . Time . | . . . . Total Robot Build Rating . | . . . . Part Schematics Acquired . | . . . . Parts Built . | . . . . Authchips . | . . . . Time . | . . . . Total Part Build Rating . | . . . . Parts Repaired . | . . . . Time . | . . . . Parts Recycled . | . . . . Recycled Matter . | . . . . Retrieved Matter . | . . . . Retrieved Components . | . . . . Parts Scanalyzed . | . . . . Part Schematics Acquired . | . . . . Parts Damaged . | . . . . Bothacking | -11 -10 -9 -9 ------------ Run | Yrd Mat Mat Sto Used RIF Installer . | . . . . Robots Hacked . | . . . . Non-combat . | . . . . Combat . | . . . . Robot Hacks Applied . | . . . . Relay Couplers Released . | . . . . Fabnet Peak Effective % . | . . . . Robots Rewired . | . . . . Allies Hacked . | . . . . Hacks Repelled . | . . . . Allies | -11 -10 -9 -9 -------- Run | Yrd Mat Mat Sto Total Allies 2 | . . . 2 Largest Group 2 | . . . 2 Highest-Rated Group 62 | . . . 62 Highest-Rated Ally 31 | . . . 31 Total Orders . | . . . . Ally Attacks 5 | . . . 5 Total Damage 109 | . . . 109 Kills 1 | . . . 1 Allies Corrupted . | . . . . Allies Melted . | . . . . Intel | -11 -10 -9 -9 ------- Run | Yrd Mat Mat Sto Robot Analysis Total 2 | . 1 1 . Derelict Logs Recovered . | . . . . Drone Launches . | . . . . Drone Recoveries . | . . . . Exploration | -11 -10 -9 -9 ------------- Run | Yrd Mat Mat Sto Turns Passed 925 | 119 187 449 170 Spaces Moved 750 | 61 207 385 97 Core 1 | 1 . . . Treads . | . . . . Legs . | . . . . Wheels 749 | 60 207 385 97 Hover . | . . . . Flight . | . . . . Fastest Speed 50 | 50 80 80 80 Average Speed 82 | 79 80 84 80 Slowest Speed 95 | 80 80 95 95 Overloaded Moves . | . . . . Propulsion Burnouts . | . . . . Robots Hopped . | . . . . Cave-ins Triggered . | . . . . Exploration Rate (%) 27 | 3 36 44 26 Regions Visited 3 Branch Regions 1 Pre-discovered Areas . | . . . . Known Exits Taken . | . . . . Unknown Exits Taken 3 | 1 1 1 . Scrap Searched . | . . . . Spaces Dug . | . . . . Terrain Destroyed 149 | . 74 28 47 Melee . | . . . . Projectile . | . . . . AOE 149 | . 74 28 47 Terrain Rammed . | . . . . Walls Destroyed . | . . . . Machines Disabled . | . . . . Actions | -11 -10 -9 -9 --------- Run | Yrd Mat Mat Sto Total 961 | 103 221 464 173 Wait 69 | 15 4 15 35 Move 747 | 60 206 384 97 Hop . | . . . . Pick Up 21 | 6 2 8 5 Fast Attach 16 | 7 . 8 1 Attach 12 | . . 8 4 Detach 5 | 1 . 2 2 Swap 7 | . 1 3 3 Drop 14 | . 1 7 6 Fire 70 | 14 7 29 20 Melee . | . . . . Ram . | . . . . Kick . | . . . . Crush . | . . . . Escape Stasis . | . . . . Rewire . | . . . . Trap . | . . . . Miscellaneous . | . . . . Route ------- -11/Scrapyard -10/Materials -9/Materials (discovered 2 exits: [*Min] / *Sto) -9/Storage History --------- Turn | Location | Event 19 | -11/Scrapyard | Discovered new exit (range 15) 120 | -11/Scrapyard | Entered Materials 296 | -10/Materials | Discovered new exit (range 12) 307 | -10/Materials | Entered another Materials area 307 | -9/Materials | Evolved 2 slots: Utility x2 340 | -9/Materials | Discovered new exit (range 15) 342 | -9/Materials | Build established: Mutant 597 | -9/Materials | Lost 8 parts (1p2n2u3w) 605 | -9/Materials | Destroyed 7 combat bots 727 | -9/Materials | Discovered new exit (range 11) 746 | -9/Materials | Central database locked down 756 | -9/Materials | Entered Storage 777 | -9/Storage | Met a pair of Derelict thieves 836 | -9/Storage | Core integrity fell below 50% 922 | -9/Storage | Core integrity fell below 20% 926 | -9/Storage | Destroyed by L-31 Rogue with Katana Last Messages --------------- 00914_ Wheel destroyed. 00914_ Critical hit (Burn: +37). 00915_ IETUYAR3> ,KH4K|R>D7DLJX260V7#FS6OYUN#NH 00917_ Lgt. Assault Rifle destroyed. 00921_ S-10 Pest destroyed. 00921_ Destroyed Lgt. Ion Engine. 00921_ G-34 Mercenary destroyed. 00921_ S-10 Pest destroyed. 00921_ G-47 Trooper destroyed. 00921_ S-10 Pest destroyed. 00921_ I-25 Savior destroyed. 00923_ G-34 Mercenary destroyed. 00923_ S-10 Pest destroyed. 00923_ G-34 Mercenary destroyed. 00923_ B-36 Bruiser destroyed. 00923_ G-34 Mercenary destroyed. 00925_ U-05 Engineer builds a Door. 00925_ Component Storage disabled. 00925_ M-13 Machinist destroyed. 00926_ Arm. Wheel destroyed. Map ----- +----------------------------------------------------+ | ?## """ ##?????? ????????????????????????????? | | ?## ##???? """??? #???????????????????? | | ####+## ############ #####+###???????????????????? | | #### #### ########## ## ##??????????????????? | | # # " %* ##??????????????????? | | " % ##??????????????????? | | # " [[ ##??????????????????? | | " ##=!* ####### [[ ##??????????????????? | | #T####%############ [ ##??????????????????? | | ######!#####??????# ##??????????????????? | | ######%##?????????# ?????????????????????? | | ##??##[#####??????# """"" #???????????????????? | | ????##=### #####??# """"" #???????????????????? | | ????##=## #### """"" #???????????????????? | | ????##=## + #???????????????????? | | ????##%## !!= #### #???????????????????? | | ????## ## !== #??# """"" #???????????????????? | | ????## ## ! #??# "" " ##### ????????????? | | ????## ## == #??# "" ???????????? | | ????# ##+########w Y ???????????? | | ????# u ! ???????????? | | ????# ## #####+ ! ######???????????????? | | ????###### # !%Y * ??????????????????????? | | ???? + # =%=Y!!! ??????????????????????? | | ?????????# ### # [ %%gl%#??????????????????????? | | ?????????# #??# ###*%=!!%@#??????????????????????? | | ?????????# #??? #?# %=!!#??????????????????????? | | ?????????# #????## =%= ??????????????????????? | | ?????????? ??????# """" ??????????????????????? | | ?????????? ??????#?????" #?????????????????????? | | ??????????+????????????" #?????????????????????? | | ???????????????????????" #?????????????????????? | | ???????????????????????" #?????????????????????? | | ???????????????????????" #?????????????????????? | | ??????????????????????? #?????????????????????? | | ???????????????????????#+#+#?????????????????????? | | ?????????????????????????????????????????????????? | | ?????????????????????????????????????????????????? | | ?????????????????????????????????????????????????? | | ?????????????????????????????????????????????????? | | ?????????????????????????????????????????????????? | | ?????????????????????????????????????????????????? | | ?????????????????????????????????????????????????? | | ?????????????????????????????????????????????????? | | ?????????????????????????????????????????????????? | | ?????????????????????????????????????????????????? | | ?????????????????????????????????????????????????? | | ?????????????????????????????????????????????????? | | ?????????????????????????????????????????????????? | | ?????????????????????????????????????????????????? | +----------------------------------------------------+ Best States ------------- Heat Dissipation 38 Energy Generation 10 Energy Capacity 125 Matter Stores 345 Matter Capacity 450 Sight Range 16 Robot Scan Range 14 Terrain Scan Range 16 Terrain Scan Density 85 Armor Coverage 150 Core Shielding 20 Evasion (%) 44 Recoil Reduction 1 Salvage Targeting 1 Item Schematics ----------------- None Robot Schematics ------------------ None Fabricated ------------ Nothing Alien Tech Used ----------------- None Achievements -------------- None Challenges ------------ None Game ------ Seed WeldingClaymoresNanosword Manual? 0 Play Time 00:14:08 Cumulative 73.7 hours Start 2024.04.11 @ 01:20:15 End 2024.04.11 @ 01:33:19 Sessions 1 Manual Loads 0 Difficulty Rogue Special Mode None Game No. 90 Rogue 90 Adventurer 0 Explorer 0 Win Type - Total 1 Types 1/0/0/0/0/0/0/0/0 Lore% 43 Gallery% 62 Achievement% 48 Wizard Run 0 Options --------- Layout 1 ASCII 0 Keyboard 0 Movement Numpad Keybinds 0 Fullscreen 1 Font 24/Smallcaps Map View 50x35 Zoom Use 0% Tactical HUD 1 Map Filters NONE Filters NONE Steam 1 RUN: e5a38d2b-b5b4-4618-ba07-7bbad839b649